[Event "Titled Tuesday Blitz January 17 Early 2023"]
[White "Remizov, Yaroslav"]
[Black "Reprintsev, Alexander"]
[WhiteFideId "34134015"]
[BlackFideId "14100541"]
[WhiteElo "2421"]
[BlackElo "2253"]
[Result "1/2-1/2"]
[Round "01"]
[TimeControl "180+2"]
[Date "2023.01.17"]
[WhiteClock "0:00:09"]
[BlackClock "0:00:34"]

1. d4 {[%clk 0:02:59]}  d5 {[%clk 0:02:46]} 2. c4 {[%clk 0:02:59]}  e5 {[%clk 0:02:46]} 3. dxe5 {[%clk 0:02:59]}  d4 {[%clk 0:02:45]} 4. Nf3 {[%clk 0:02:59]}  Nc6 {[%clk 0:02:45]} 5. Nbd2 {[%clk 0:02:59]}  a5 {[%clk 0:02:25]} 6. g3 {[%clk 0:02:57]}  Nge7 {[%clk 0:02:15]} 7. Bg2 {[%clk 0:02:55]}  Nf5 {[%clk 0:02:13]} 8. O-O {[%clk 0:02:48]}  Be7 {[%clk 0:02:12]} 9. b3 {[%clk 0:02:33]}  a4 {[%clk 0:02:10]} 10. bxa4 {[%clk 0:02:30]}  O-O {[%clk 0:02:08]} 11. Rb1 {[%clk 0:02:29]}  Ra7 {[%clk 0:02:03]} 12. h3 {[%clk 0:02:27]}  Be6 {[%clk 0:02:03]} 13. g4 {[%clk 0:02:24]}  Nh4 {[%clk 0:02:02]} 14. Nxh4 {[%clk 0:02:24]}  Bxh4 {[%clk 0:02:03]} 15. f4 {[%clk 0:02:14]}  f5 {[%clk 0:01:56]} 16. g5 {[%clk 0:02:02]}  h6 {[%clk 0:01:55]} 17. Nf3 {[%clk 0:02:01]}  hxg5 {[%clk 0:01:55]} 18. Nxh4 {[%clk 0:01:45]}  gxh4 {[%clk 0:01:55]} 19. Qc2 {[%clk 0:01:35]}  Qd7 {[%clk 0:01:54]} 20. Rb5 {[%clk 0:01:30]}  Rfa8 {[%clk 0:01:53]} 21. Bd5 {[%clk 0:01:27]}  Rxa4 {[%clk 0:01:52]} 22. Qxf5 {[%clk 0:01:27]}  Nd8 {[%clk 0:01:47]} 23. Rxb7 {[%clk 0:01:19]}  Rxa2 {[%clk 0:01:31]} 24. Qe4 {[%clk 0:01:14]}  Bxd5 {[%clk 0:01:27]} 25. cxd5 {[%clk 0:01:07]}  Nxb7 {[%clk 0:01:27]} 26. f5 {[%clk 0:01:02]}  Nc5 {[%clk 0:01:20]} 27. Qxd4 {[%clk 0:01:00]}  Nb3 {[%clk 0:01:19]} 28. Qc4 {[%clk 0:00:28]}  Nxc1 {[%clk 0:01:18]} 29. Rxc1 {[%clk 0:00:22]}  R8a4 {[%clk 0:01:14]} 30. Qxc7 {[%clk 0:00:07]}  Qxf5 {[%clk 0:00:55]} 31. Qc8+ {[%clk 0:00:06]}  Qxc8 {[%clk 0:00:56]} 32. Rxc8+ {[%clk 0:00:07]}  Kf7 {[%clk 0:00:56]} 33. e6+ {[%clk 0:00:06]}  Kf6 {[%clk 0:00:55]} 34. Rf8+ {[%clk 0:00:06]}  Ke7 {[%clk 0:00:53]} 35. Rf7+ {[%clk 0:00:06]}  Ke8 {[%clk 0:00:53]} 36. d6 {[%clk 0:00:06]}  Rd4 {[%clk 0:00:37]} 37. d7+ {[%clk 0:00:06]}  Kd8 {[%clk 0:00:36]} 38. Rf8+ {[%clk 0:00:06]}  Kc7 {[%clk 0:00:37]} 39. Rc8+ {[%clk 0:00:06]}  Kb7 {[%clk 0:00:36]} 40. d8=Q {[%clk 0:00:06]}  Rxd8 {[%clk 0:00:36]} 41. Rxd8 {[%clk 0:00:07]}  Rxe2 {[%clk 0:00:37]} 42. Rd7+ {[%clk 0:00:05]}  Kc6 {[%clk 0:00:37]} 43. Rxg7 {[%clk 0:00:05]}  Rxe6 {[%clk 0:00:37]} 44. Kf2 {[%clk 0:00:06]}  Re4 {[%clk 0:00:36]} 45. Kf3 {[%clk 0:00:06]}  Ra4 {[%clk 0:00:36]} 46. Re7 {[%clk 0:00:06]}  Kd6 {[%clk 0:00:36]} 47. Re1 {[%clk 0:00:06]}  Kd7 {[%clk 0:00:35]} 48. Re2 {[%clk 0:00:06]}  Kd6 {[%clk 0:00:35]} 49. Re3 {[%clk 0:00:06]}  Kd7 {[%clk 0:00:35]} 50. Re1 {[%clk 0:00:07]}  Kd6 {[%clk 0:00:35]} 51. Re8 {[%clk 0:00:07]}  Kd7 {[%clk 0:00:35]} 52. Rg8 {[%clk 0:00:07]}  Ke7 {[%clk 0:00:35]} 53. Rg4 {[%clk 0:00:08]}  Rxg4 {[%clk 0:00:33]} 54. hxg4 {[%clk 0:00:08]}  Kf6 {[%clk 0:00:33]} 55. Kg2 {[%clk 0:00:08]}  Kg6 {[%clk 0:00:33]} 56. Kh2 {[%clk 0:00:08]}  Kh6 {[%clk 0:00:33]} 57. Kg2 {[%clk 0:00:08]}  Kg6 {[%clk 0:00:33]} 58. Kh2 {[%clk 0:00:09]}  Kh6 {[%clk 0:00:34]} 59. Kg2 {[%clk 0:00:09]}  Kg6 {[%clk 0:00:34]} 1/2-1/2


[Site "https://www.chess.com"]

[Event "Titled Tuesday Blitz January 17 Early 2023"]
[White "Ortega Ruiz, Jose Miguel"]
[Black "Oparin, Grigoriy"]
[WhiteFideId "2209713"]
[BlackFideId "24125890"]
[WhiteElo "2351"]
[BlackElo "2667"]
[Result "0-1"]
[Round "01"]
[TimeControl "180+2"]
[Date "2023.01.17"]
[WhiteClock "0:00:58"]
[BlackClock "0:01:08"]

1. Nf3 {[%clk 0:02:58]}  c5 {[%clk 0:02:59]} 2. e3 {[%clk 0:02:59]}  Nc6 {[%clk 0:03:00]} 3. d4 {[%clk 0:03:00]}  e6 {[%clk 0:03:00]} 4. Be2 {[%clk 0:02:58]}  Nf6 {[%clk 0:03:00]} 5. O-O {[%clk 0:02:58]}  b6 {[%clk 0:03:01]} 6. c4 {[%clk 0:02:58]}  cxd4 {[%clk 0:02:59]} 7. exd4 {[%clk 0:02:58]}  d5 {[%clk 0:02:59]} 8. Nc3 {[%clk 0:02:57]}  Bb7 {[%clk 0:02:59]} 9. cxd5 {[%clk 0:02:57]}  Nxd5 {[%clk 0:02:58]} 10. Bb5 {[%clk 0:02:57]}  a6 {[%clk 0:02:53]} 11. Ba4 {[%clk 0:02:57]}  Be7 {[%clk 0:02:50]} 12. Bb3 {[%clk 0:02:53]}  Na5 {[%clk 0:02:49]} 13. Bc2 {[%clk 0:02:45]}  Rc8 {[%clk 0:02:45]} 14. Nxd5 {[%clk 0:02:42]}  Qxd5 {[%clk 0:02:40]} 15. Bd3 {[%clk 0:02:40]}  O-O {[%clk 0:02:34]} 16. Re1 {[%clk 0:02:39]}  Nc6 {[%clk 0:02:10]} 17. Be4 {[%clk 0:02:38]}  Qh5 {[%clk 0:02:08]} 18. d5 {[%clk 0:02:31]}  exd5 {[%clk 0:02:09]} 19. Qxd5 {[%clk 0:02:32]}  Qxd5 {[%clk 0:02:08]} 20. Bxd5 {[%clk 0:02:33]}  Bf6 {[%clk 0:02:09]} 21. Be3 {[%clk 0:02:30]}  b5 {[%clk 0:02:03]} 22. a4 {[%clk 0:02:28]}  b4 {[%clk 0:01:58]} 23. Bc5 {[%clk 0:02:20]}  Rfd8 {[%clk 0:01:56]} 24. Rad1 {[%clk 0:02:21]}  Bxb2 {[%clk 0:01:43]} 25. Bxc6 {[%clk 0:02:21]}  Bxc6 {[%clk 0:01:37]} 26. Bxb4 {[%clk 0:02:17]}  Rxd1 {[%clk 0:01:35]} 27. Rxd1 {[%clk 0:02:16]}  Bxa4 {[%clk 0:01:35]} 28. Re1 {[%clk 0:02:03]}  h6 {[%clk 0:01:33]} 29. h4 {[%clk 0:02:02]}  Bb5 {[%clk 0:01:29]} 30. Ba5 {[%clk 0:01:56]}  Bf6 {[%clk 0:01:26]} 31. Bb6 {[%clk 0:01:48]}  Rc4 {[%clk 0:01:25]} 32. h5 {[%clk 0:01:47]}  Rc6 {[%clk 0:01:19]} 33. Ba7 {[%clk 0:01:39]}  a5 {[%clk 0:01:18]} 34. Ne5 {[%clk 0:01:39]}  Ra6 {[%clk 0:01:17]} 35. Bc5 {[%clk 0:01:38]}  a4 {[%clk 0:01:17]} 36. Ng4 {[%clk 0:01:39]}  Bb2 {[%clk 0:01:14]} 37. Ne3 {[%clk 0:01:35]}  a3 {[%clk 0:01:14]} 38. Nc2 {[%clk 0:01:36]}  a2 {[%clk 0:01:10]} 39. Na1 {[%clk 0:01:35]}  Bxa1 {[%clk 0:01:07]} 40. Rxa1 {[%clk 0:01:35]}  Bd3 {[%clk 0:01:07]} 41. f3 {[%clk 0:01:29]}  Bb1 {[%clk 0:01:07]} 42. Kf2 {[%clk 0:01:30]}  Ra5 {[%clk 0:01:07]} 43. Bd4 {[%clk 0:01:27]}  Rxh5 {[%clk 0:01:08]} 44. Ke3 {[%clk 0:01:26]}  Rb5 {[%clk 0:01:08]} 45. g4 {[%clk 0:01:26]}  f6 {[%clk 0:01:09]} 46. Kf4 {[%clk 0:01:26]}  Kf7 {[%clk 0:01:09]} 47. Ke3 {[%clk 0:01:26]}  g5 {[%clk 0:01:10]} 48. Bc3 {[%clk 0:01:27]}  Kg6 {[%clk 0:01:09]} 49. Kd2 {[%clk 0:01:27]}  h5 {[%clk 0:01:09]} 50. gxh5+ {[%clk 0:01:27]}  Kf5 {[%clk 0:01:08]} 51. Ke3 {[%clk 0:01:22]}  Rb3 {[%clk 0:01:07]} 52. Kd4 {[%clk 0:01:20]}  Rb7 {[%clk 0:01:08]} 53. Ke3 {[%clk 0:01:12]}  Rh7 {[%clk 0:01:08]} 54. Kf2 {[%clk 0:01:09]}  Rxh5 {[%clk 0:01:08]} 55. Ke3 {[%clk 0:01:09]}  Rh2 {[%clk 0:01:08]} 56. Bd4 {[%clk 0:01:08]}  Ke6 {[%clk 0:01:08]} 57. Bb6 {[%clk 0:01:05]}  f5 {[%clk 0:01:08]} 58. Bd8 {[%clk 0:01:04]}  f4+ {[%clk 0:01:08]} 59. Kd4 {[%clk 0:01:01]}  Kf5 {[%clk 0:01:08]} 60. Kc3 {[%clk 0:00:58]}  Rf2 {[%clk 0:01:08]} 0-1


[Site "https://www.chess.com"]

[Event "Titled Tuesday Blitz January 17 Early 2023"]
[White "Aravindh, Chithambaram VR."]
[Black "Kuznetsov, Mikhail"]
[WhiteFideId "5072786"]
[BlackFideId "4117190"]
[WhiteElo "2633"]
[BlackElo "2050"]
[Result "1-0"]
[Round "01"]
[TimeControl "180+2"]
[Date "2023.01.17"]
[WhiteClock "0:01:12"]
[BlackClock "0:00:20"]

1. c4 {[%clk 0:02:52]}  Nf6 {[%clk 0:02:57]} 2. Nc3 {[%clk 0:02:51]}  d5 {[%clk 0:02:55]} 3. cxd5 {[%clk 0:02:51]}  Nxd5 {[%clk 0:02:56]} 4. g3 {[%clk 0:02:50]}  g6 {[%clk 0:02:52]} 5. Bg2 {[%clk 0:02:50]}  Nb6 {[%clk 0:02:53]} 6. h4 {[%clk 0:02:50]}  h5 {[%clk 0:02:51]} 7. Nf3 {[%clk 0:02:50]}  Bg7 {[%clk 0:02:51]} 8. O-O {[%clk 0:02:50]}  O-O {[%clk 0:02:51]} 9. d3 {[%clk 0:02:49]}  Nc6 {[%clk 0:02:50]} 10. Be3 {[%clk 0:02:46]}  e5 {[%clk 0:02:43]} 11. Rc1 {[%clk 0:02:46]}  Be6 {[%clk 0:02:38]} 12. Ne4 {[%clk 0:02:31]}  Bd5 {[%clk 0:02:19]} 13. Nc5 {[%clk 0:02:26]}  Nd4 {[%clk 0:02:16]} 14. Nxd4 {[%clk 0:02:06]}  exd4 {[%clk 0:01:54]} 15. Bg5 {[%clk 0:02:04]}  Qc8 {[%clk 0:01:53]} 16. Bxd5 {[%clk 0:01:45]}  Nxd5 {[%clk 0:01:53]} 17. Qb3 {[%clk 0:01:45]}  Nb6 {[%clk 0:01:48]} 18. a4 {[%clk 0:01:42]}  a5 {[%clk 0:01:35]} 19. Ne4 {[%clk 0:01:39]}  Nd7 {[%clk 0:01:06]} 20. Be7 {[%clk 0:01:28]}  Re8 {[%clk 0:01:05]} 21. Nd6 {[%clk 0:01:28]}  cxd6 {[%clk 0:00:43]} 22. Rxc8 {[%clk 0:01:29]}  Raxc8 {[%clk 0:00:43]} 23. Bxd6 {[%clk 0:01:27]}  Nc5 {[%clk 0:00:35]} 24. Qb5 {[%clk 0:01:23]}  b6 {[%clk 0:00:29]} 25. Rc1 {[%clk 0:01:16]}  Rxe2 {[%clk 0:00:20]} 26. Qxb6 {[%clk 0:01:12]} 1-0


[Site "https://www.chess.com"]

[Event "Titled Tuesday Blitz January 17 Early 2023"]
[White "Movahed, Sina"]
[Black "Kazancev, Valerij M"]
[WhiteFideId "42520835"]
[BlackFideId "4179609"]
[WhiteElo "2340"]
[BlackElo "2313"]
[Result "1-0"]
[Round "01"]
[TimeControl "180+2"]
[Date "2023.01.17"]
[WhiteClock "0:00:01"]
[BlackClock "0:00:02"]

1. e4 {[%clk 0:02:59]}  g6 {[%clk 0:02:57]} 2. d4 {[%clk 0:02:59]}  Bg7 {[%clk 0:02:58]} 3. Nf3 {[%clk 0:02:59]}  e6 {[%clk 0:02:58]} 4. Be3 {[%clk 0:02:57]}  Ne7 {[%clk 0:02:58]} 5. Nc3 {[%clk 0:02:56]}  a6 {[%clk 0:02:58]} 6. Qd2 {[%clk 0:02:56]}  h6 {[%clk 0:02:58]} 7. a4 {[%clk 0:02:53]}  d6 {[%clk 0:02:55]} 8. h4 {[%clk 0:02:49]}  Nd7 {[%clk 0:02:46]} 9. a5 {[%clk 0:02:47]}  c6 {[%clk 0:02:29]} 10. Bd3 {[%clk 0:02:42]}  d5 {[%clk 0:02:28]} 11. Ne2 {[%clk 0:02:28]}  dxe4 {[%clk 0:02:24]} 12. Bxe4 {[%clk 0:02:29]}  Nd5 {[%clk 0:02:24]} 13. h5 {[%clk 0:02:06]}  g5 {[%clk 0:02:21]} 14. O-O {[%clk 0:02:05]}  N7f6 {[%clk 0:02:19]} 15. Bd3 {[%clk 0:01:58]}  Nxh5 {[%clk 0:02:14]} 16. Ne5 {[%clk 0:01:57]}  O-O {[%clk 0:01:53]} 17. c4 {[%clk 0:01:54]}  Nxe3 {[%clk 0:01:52]} 18. Qxe3 {[%clk 0:01:55]}  c5 {[%clk 0:01:44]} 19. Rfd1 {[%clk 0:01:46]}  cxd4 {[%clk 0:01:38]} 20. Nxd4 {[%clk 0:01:46]}  Qc7 {[%clk 0:01:37]} 21. Ndf3 {[%clk 0:01:43]}  Nf6 {[%clk 0:01:12]} 22. Bc2 {[%clk 0:01:14]}  Bd7 {[%clk 0:00:59]} 23. Nxg5 {[%clk 0:00:32]}  hxg5 {[%clk 0:00:58]} 24. Qxg5 {[%clk 0:00:32]}  Rfd8 {[%clk 0:00:44]} 25. Ra3 {[%clk 0:00:30]}  Ne4 {[%clk 0:00:30]} 26. Bxe4 {[%clk 0:00:23]}  Qxe5 {[%clk 0:00:30]} 27. Qh4 {[%clk 0:00:24]}  Kf8 {[%clk 0:00:15]} 28. Rf3 {[%clk 0:00:19]}  Rac8 {[%clk 0:00:09]} 29. Bg6 {[%clk 0:00:18]}  f5 {[%clk 0:00:09]} 30. g4 {[%clk 0:00:09]}  Qe4 {[%clk 0:00:07]} 31. Re3 {[%clk 0:00:02]}  Qf4 {[%clk 0:00:02]} 32. Red3 {[%clk 0:00:01]} 1-0


[Site "https://www.chess.com"]

[Event "Titled Tuesday Blitz January 17 Early 2023"]
[White "Nguyen Hong Nhung"]
[Black "Shankland, Sam"]
[WhiteFideId "12412201"]
[BlackFideId "2004887"]
[WhiteElo "2003"]
[BlackElo "2711"]
[Result "0-1"]
[Round "01"]
[TimeControl "180+2"]
[Date "2023.01.17"]
[WhiteClock "0:01:30"]
[BlackClock "0:02:02"]

1. e4 {[%clk 0:02:48]}  c5 {[%clk 0:02:59]} 2. Nc3 {[%clk 0:02:47]}  Nc6 {[%clk 0:02:57]} 3. Bb5 {[%clk 0:02:47]}  Nd4 {[%clk 0:02:55]} 4. Bc4 {[%clk 0:02:48]}  e6 {[%clk 0:02:55]} 5. Nge2 {[%clk 0:02:46]}  Nf6 {[%clk 0:02:53]} 6. O-O {[%clk 0:02:47]}  a6 {[%clk 0:02:53]} 7. a4 {[%clk 0:02:44]}  d5 {[%clk 0:02:52]} 8. exd5 {[%clk 0:02:45]}  exd5 {[%clk 0:02:52]} 9. Ba2 {[%clk 0:02:45]}  Bd6 {[%clk 0:02:51]} 10. h3 {[%clk 0:02:33]}  O-O {[%clk 0:02:47]} 11. Nxd4 {[%clk 0:02:33]}  cxd4 {[%clk 0:02:47]} 12. Ne2 {[%clk 0:02:32]}  d3 {[%clk 0:02:43]} 13. cxd3 {[%clk 0:02:30]}  Re8 {[%clk 0:02:43]} 14. d4 {[%clk 0:02:28]}  Bf5 {[%clk 0:02:34]} 15. d3 {[%clk 0:02:27]}  h6 {[%clk 0:02:34]} 16. Re1 {[%clk 0:02:25]}  Qd7 {[%clk 0:02:34]} 17. Be3 {[%clk 0:02:22]}  Re7 {[%clk 0:02:13]} 18. Bb3 {[%clk 0:02:04]}  Rae8 {[%clk 0:02:09]} 19. Qd2 {[%clk 0:02:04]}  Bxh3 {[%clk 0:02:07]} 20. gxh3 {[%clk 0:01:53]}  Qxh3 {[%clk 0:02:07]} 21. Bf4 {[%clk 0:01:46]}  Qg4+ {[%clk 0:02:05]} 22. Kf1 {[%clk 0:01:41]}  Qf3 {[%clk 0:02:03]} 23. Bxd6 {[%clk 0:01:30]}  Rxe2 {[%clk 0:02:02]} 0-1


[Site "https://www.chess.com"]

[Event "Titled Tuesday Blitz January 17 Early 2023"]
[White "Molina, Roberto Junio Brito"]
[Black "Bozorov, Makhsum"]
[WhiteFideId "2109450"]
[BlackFideId "14201330"]
[WhiteElo "2403"]
[BlackElo "2145"]
[Result "0-1"]
[Round "01"]
[TimeControl "180+2"]
[Date "2023.01.17"]
[WhiteClock "0:01:20"]
[BlackClock "0:01:13"]

1. d4 {[%clk 0:02:47]}  Nf6 {[%clk 0:02:58]} 2. c4 {[%clk 0:02:38]}  g6 {[%clk 0:02:58]} 3. Nc3 {[%clk 0:02:36]}  d5 {[%clk 0:02:58]} 4. Nf3 {[%clk 0:02:36]}  Bg7 {[%clk 0:02:58]} 5. Qb3 {[%clk 0:02:36]}  dxc4 {[%clk 0:02:57]} 6. Qxc4 {[%clk 0:02:37]}  O-O {[%clk 0:02:57]} 7. e4 {[%clk 0:02:36]}  Na6 {[%clk 0:02:57]} 8. Be2 {[%clk 0:02:28]}  c5 {[%clk 0:02:57]} 9. d5 {[%clk 0:02:28]}  e6 {[%clk 0:02:58]} 10. O-O {[%clk 0:02:28]}  exd5 {[%clk 0:02:58]} 11. exd5 {[%clk 0:02:29]}  Re8 {[%clk 0:02:58]} 12. Rd1 {[%clk 0:02:28]}  Bf5 {[%clk 0:02:57]} 13. Bg5 {[%clk 0:02:26]}  h6 {[%clk 0:02:56]} 14. Bh4 {[%clk 0:02:26]}  Qb6 {[%clk 0:02:50]} 15. Na4 {[%clk 0:02:21]}  Qb4 {[%clk 0:02:44]} 16. a3 {[%clk 0:02:13]}  Qxc4 {[%clk 0:02:39]} 17. Bxc4 {[%clk 0:02:14]}  Ne4 {[%clk 0:02:39]} 18. Nd2 {[%clk 0:02:04]}  Nd6 {[%clk 0:02:38]} 19. Bxa6 {[%clk 0:02:04]}  bxa6 {[%clk 0:02:38]} 20. Bg3 {[%clk 0:02:01]}  Bc2 {[%clk 0:02:22]} 21. Re1 {[%clk 0:01:51]}  Bxa4 {[%clk 0:02:21]} 22. Bxd6 {[%clk 0:01:50]}  Bxb2 {[%clk 0:02:20]} 23. Rxe8+ {[%clk 0:01:49]}  Rxe8 {[%clk 0:02:18]} 24. Rb1 {[%clk 0:01:49]}  Bxa3 {[%clk 0:02:14]} 25. Ne4 {[%clk 0:01:46]}  Rxe4 {[%clk 0:01:58]} 26. Rb8+ {[%clk 0:01:45]}  Kh7 {[%clk 0:01:57]} 27. f3 {[%clk 0:01:44]}  Rb4 {[%clk 0:01:41]} 28. Ra8 {[%clk 0:01:39]}  Bb2 {[%clk 0:01:32]} 29. Rxa7 {[%clk 0:01:34]}  Bd4+ {[%clk 0:01:32]} 30. Kf1 {[%clk 0:01:34]}  Bb5+ {[%clk 0:01:30]} 31. Ke1 {[%clk 0:01:34]}  Rb1+ {[%clk 0:01:27]} 32. Kd2 {[%clk 0:01:34]}  Kg7 {[%clk 0:01:25]} 33. f4 {[%clk 0:01:25]}  Rb2+ {[%clk 0:01:25]} 34. Kd1 {[%clk 0:01:25]}  Rxg2 {[%clk 0:01:26]} 35. Be5+ {[%clk 0:01:24]}  Bxe5 {[%clk 0:01:25]} 36. fxe5 {[%clk 0:01:25]}  Kf8 {[%clk 0:01:12]} 37. Ra8+ {[%clk 0:01:22]}  Ke7 {[%clk 0:01:13]} 38. Ra7+ {[%clk 0:01:22]}  Bd7 {[%clk 0:01:13]} 39. Rxa6 {[%clk 0:01:20]}  Rg5 {[%clk 0:01:13]} 0-1


[Site "https://www.chess.com"]

[Event "Titled Tuesday Blitz January 17 Early 2023"]
[White "Sihite, Chelsie Monica Ignesias"]
[Black "Kravtsiv, Martyn"]
[WhiteFideId "7101198"]
[BlackFideId "14113147"]
[WhiteElo "2266"]
[BlackElo "2598"]
[Result "0-1"]
[Round "01"]
[TimeControl "180+2"]
[Date "2023.01.17"]
[WhiteClock "0:00:20"]
[BlackClock "0:00:29"]

1. c4 {[%clk 0:02:52]}  e6 {[%clk 0:02:59]} 2. Nf3 {[%clk 0:02:50]}  d5 {[%clk 0:03:00]} 3. g3 {[%clk 0:02:50]}  Nf6 {[%clk 0:02:58]} 4. Bg2 {[%clk 0:02:50]}  Be7 {[%clk 0:02:57]} 5. O-O {[%clk 0:02:51]}  O-O {[%clk 0:02:58]} 6. cxd5 {[%clk 0:02:49]}  exd5 {[%clk 0:02:57]} 7. d4 {[%clk 0:02:50]}  c6 {[%clk 0:02:53]} 8. Nc3 {[%clk 0:02:50]}  h6 {[%clk 0:02:51]} 9. h3 {[%clk 0:02:51]}  Bf5 {[%clk 0:02:50]} 10. Bf4 {[%clk 0:02:51]}  Nbd7 {[%clk 0:02:49]} 11. a4 {[%clk 0:02:51]}  a5 {[%clk 0:02:43]} 12. Ne5 {[%clk 0:02:49]}  Bb4 {[%clk 0:02:32]} 13. Nxd7 {[%clk 0:02:48]}  Nxd7 {[%clk 0:02:28]} 14. g4 {[%clk 0:02:48]}  Bh7 {[%clk 0:02:25]} 15. Re1 {[%clk 0:02:48]}  Re8 {[%clk 0:02:25]} 16. Qc1 {[%clk 0:02:41]}  Rc8 {[%clk 0:02:15]} 17. Bd2 {[%clk 0:02:39]}  Nf6 {[%clk 0:02:11]} 18. Nd1 {[%clk 0:02:37]}  Bd6 {[%clk 0:01:56]} 19. Nc3 {[%clk 0:02:35]}  Qb6 {[%clk 0:01:49]} 20. e3 {[%clk 0:02:27]}  Bb8 {[%clk 0:01:46]} 21. Ne2 {[%clk 0:02:26]}  Ne4 {[%clk 0:01:45]} 22. Bc3 {[%clk 0:02:16]}  Qc7 {[%clk 0:01:44]} 23. f4 {[%clk 0:02:12]}  Qb6 {[%clk 0:01:39]} 24. Bxe4 {[%clk 0:02:10]}  Bxe4 {[%clk 0:01:38]} 25. Ng3 {[%clk 0:02:10]}  Qd8 {[%clk 0:01:30]} 26. Qd2 {[%clk 0:02:06]}  b6 {[%clk 0:01:29]} 27. Qf2 {[%clk 0:02:04]}  Qd6 {[%clk 0:01:27]} 28. Rac1 {[%clk 0:02:02]}  Re7 {[%clk 0:01:26]} 29. Kh2 {[%clk 0:01:59]}  Rce8 {[%clk 0:01:25]} 30. Bd2 {[%clk 0:01:51]}  Kh7 {[%clk 0:01:17]} 31. Nxe4 {[%clk 0:01:46]}  Rxe4 {[%clk 0:01:16]} 32. Kg2 {[%clk 0:01:46]}  R8e6 {[%clk 0:01:14]} 33. Rh1 {[%clk 0:01:42]}  Rg6 {[%clk 0:01:11]} 34. Kf1 {[%clk 0:01:34]}  c5 {[%clk 0:01:08]} 35. dxc5 {[%clk 0:01:25]}  bxc5 {[%clk 0:01:09]} 36. Qf3 {[%clk 0:01:26]}  Rxa4 {[%clk 0:01:04]} 37. f5 {[%clk 0:01:25]}  Rf6 {[%clk 0:01:03]} 38. h4 {[%clk 0:01:23]}  Qd7 {[%clk 0:01:01]} 39. Ke2 {[%clk 0:01:21]}  Qb5+ {[%clk 0:00:59]} 40. Ke1 {[%clk 0:01:19]}  Qxb2 {[%clk 0:00:53]} 41. g5 {[%clk 0:01:18]}  Ra2 {[%clk 0:00:52]} 42. Rd1 {[%clk 0:01:12]}  Rb6 {[%clk 0:00:44]} 43. Rg1 {[%clk 0:01:08]}  Qe5 {[%clk 0:00:40]} 44. Qg4 {[%clk 0:00:57]}  Rxd2 {[%clk 0:00:35]} 45. g6+ {[%clk 0:00:56]}  Kh8 {[%clk 0:00:32]} 46. Rxd2 {[%clk 0:00:55]}  Qxe3+ {[%clk 0:00:31]} 47. Kd1 {[%clk 0:00:19]}  Rb1+ {[%clk 0:00:29]} 48. Kc2 {[%clk 0:00:20]}  Qb3# {[%clk 0:00:29]} 0-1


[Site "https://www.chess.com"]

[Event "Titled Tuesday Blitz January 17 Early 2023"]
[White "Demidov, Mikhail"]
[Black "Kuzmin, Roman"]
[WhiteFideId "4197143"]
[BlackFideId "44134932"]
[WhiteElo "2583"]
[BlackElo "2198"]
[Result "1-0"]
[Round "01"]
[TimeControl "180+2"]
[Date "2023.01.17"]
[WhiteClock "0:02:07"]
[BlackClock "0:01:47"]

1. Nf3 {[%clk 0:02:51]}  Nf6 {[%clk 0:02:59]} 2. g3 {[%clk 0:02:50]}  e6 {[%clk 0:03:00]} 3. Bg2 {[%clk 0:02:50]}  d5 {[%clk 0:03:01]} 4. O-O {[%clk 0:02:50]}  Be7 {[%clk 0:03:00]} 5. c4 {[%clk 0:02:51]}  O-O {[%clk 0:03:00]} 6. b3 {[%clk 0:02:49]}  c6 {[%clk 0:02:59]} 7. Bb2 {[%clk 0:02:43]}  b6 {[%clk 0:02:59]} 8. e3 {[%clk 0:02:43]}  Bb7 {[%clk 0:02:55]} 9. Qe2 {[%clk 0:02:43]}  Nbd7 {[%clk 0:02:55]} 10. Nc3 {[%clk 0:02:44]}  Rc8 {[%clk 0:02:54]} 11. Rac1 {[%clk 0:02:39]}  Bd6 {[%clk 0:02:54]} 12. d4 {[%clk 0:02:35]}  Qe7 {[%clk 0:02:54]} 13. Rfd1 {[%clk 0:02:34]}  a6 {[%clk 0:02:51]} 14. e4 {[%clk 0:02:31]}  Ba3 {[%clk 0:02:41]} 15. e5 {[%clk 0:02:26]}  Ne8 {[%clk 0:02:24]} 16. h4 {[%clk 0:02:25]}  Bxb2 {[%clk 0:02:16]} 17. Qxb2 {[%clk 0:02:24]}  dxc4 {[%clk 0:02:12]} 18. bxc4 {[%clk 0:02:24]}  c5 {[%clk 0:02:12]} 19. d5 {[%clk 0:02:21]}  exd5 {[%clk 0:02:13]} 20. Nxd5 {[%clk 0:02:20]}  Qe6 {[%clk 0:02:11]} 21. Ng5 {[%clk 0:02:17]}  Qxe5 {[%clk 0:02:02]} 22. Qxe5 {[%clk 0:02:17]}  Nxe5 {[%clk 0:02:03]} 23. Ne7+ {[%clk 0:02:17]}  Kh8 {[%clk 0:02:03]} 24. Nxc8 {[%clk 0:02:16]}  Bxc8 {[%clk 0:02:02]} 25. Rd8 {[%clk 0:02:16]}  Bf5 {[%clk 0:01:54]} 26. Re1 {[%clk 0:02:11]}  f6 {[%clk 0:01:52]} 27. Nf7+ {[%clk 0:02:08]}  Nxf7 {[%clk 0:01:47]} 28. Rexe8 {[%clk 0:02:07]} 1-0


[Site "https://www.chess.com"]

[Event "Titled Tuesday Blitz January 17 Early 2023"]
[White "Babazada, Khazar"]
[Black "Garcia Almaguer, Juan Manuel"]
[WhiteFideId "13413554"]
[BlackFideId "5110491"]
[WhiteElo "2474"]
[BlackElo "2090"]
[Result "1-0"]
[Round "01"]
[TimeControl "180+2"]
[Date "2023.01.17"]
[WhiteClock "0:02:39"]
[BlackClock "0:00:59"]

1. c4 {[%clk 0:03:00]}  Nf6 {[%clk 0:02:59]} 2. Nc3 {[%clk 0:03:00]}  e5 {[%clk 0:02:29]} 3. Nf3 {[%clk 0:02:59]}  Nc6 {[%clk 0:02:22]} 4. e4 {[%clk 0:02:59]}  Bc5 {[%clk 0:01:50]} 5. Nxe5 {[%clk 0:02:57]}  Nxe5 {[%clk 0:01:49]} 6. d4 {[%clk 0:02:58]}  Bxd4 {[%clk 0:01:49]} 7. Qxd4 {[%clk 0:02:58]}  Nc6 {[%clk 0:01:49]} 8. Qd2 {[%clk 0:02:57]}  d6 {[%clk 0:01:50]} 9. b3 {[%clk 0:02:57]}  O-O {[%clk 0:01:49]} 10. Bb2 {[%clk 0:02:58]}  Re8 {[%clk 0:01:50]} 11. f3 {[%clk 0:02:58]}  a5 {[%clk 0:01:48]} 12. h4 {[%clk 0:02:58]}  h5 {[%clk 0:01:47]} 13. Be2 {[%clk 0:02:54]}  Bd7 {[%clk 0:01:46]} 14. O-O-O {[%clk 0:02:54]}  a4 {[%clk 0:01:45]} 15. g4 {[%clk 0:02:50]}  axb3 {[%clk 0:01:43]} 16. axb3 {[%clk 0:02:51]}  hxg4 {[%clk 0:01:26]} 17. h5 {[%clk 0:02:51]}  Ne5 {[%clk 0:01:21]} 18. f4 {[%clk 0:02:47]}  Nf3 {[%clk 0:01:17]} 19. Bxf3 {[%clk 0:02:47]}  gxf3 {[%clk 0:01:17]} 20. Rdg1 {[%clk 0:02:48]}  Kf8 {[%clk 0:01:03]} 21. h6 {[%clk 0:02:45]}  gxh6 {[%clk 0:01:01]} 22. Rxh6 {[%clk 0:02:42]}  c6 {[%clk 0:01:00]} 23. Qxd6+ {[%clk 0:02:41]}  Qe7 {[%clk 0:00:59]} 24. Rh8+ {[%clk 0:02:39]} 1-0


[Site "https://www.chess.com"]